bitfinex-derivatives/quotes_BTCF0:USTF0_20241226
["timestamp","ask_amount","ask_price","bid_price","bid_amount"]
[1735237066215,0.052251,95783.0,95769.0,0.18702844]
[1735237066416,0.138851,95782.0,95775.0,0.052255]
[1735237066616,0.07639315,95780.0,95775.0,0.052255]
[1735237067027,0.052256,95773.0,95769.0,0.18702844]
[1735237067222,0.052256,95773.0,95768.0,0.00156602]
[1735237067223,0.0879,95772.0,95768.0,0.00156602]
[1735237067926,0.0879,95772.0,95769.0,0.052258]
[1735237069028,0.0893,95771.0,95769.0,0.052258]
[1735237070120,0.0933,95771.0,95769.0,0.052258]
[1735237070730,0.0923,95771.0,95768.0,0.00156602]
[1735237070934,0.052259,95768.0,95762.0,0.052262]
[1735237071635,0.052259,95767.0,95762.0,0.052262]
[1735237072927,0.05226,95765.0,95762.0,0.001]
[1735237073136,0.052261,95764.0,95762.0,0.001]
[1735237073331,0.008,95767.0,95744.0,0.05]
[1735237073332,0.052266,95755.0,95745.0,0.052271]
[1735237073524,0.089,95754.0,95732.0,0.01340251]
[1735237073729,0.16539315,95754.0,95747.0,0.05227]
[1735237074734,0.16539315,95754.0,95730.0,0.05]
[1735237075029,0.089,95754.0,95749.0,0.052269]
[1735237075626,0.089,95754.0,95750.0,0.052268]
[1735237076135,0.01499071,95754.0,95753.0,0.052267]
[1735237076638,0.01999071,95754.0,95753.0,0.052267]
[1735237076937,0.052268,95751.0,95750.0,0.009]
[1735237077731,0.052271,95746.0,95733.0,0.052277]
[1735237077931,0.052273,95742.0,95716.0,0.0841]
[1735237078133,0.07639315,95743.0,95716.0,0.0841]
[1735237078134,0.092,95741.0,95716.0,0.09728411]
[1735237078435,0.092,95741.0,95737.0,0.052275]
[1735237079335,0.092,95741.0,95739.0,0.052274]
[1735237080133,0.093,95741.0,95739.0,0.052274]
[1735237080630,0.10620087,95741.0,95739.0,0.052274]
[1735237081031,0.11020087,95741.0,95739.0,0.052274]
[1735237081634,0.10920087,95741.0,95739.0,0.052274]
[1735237081828,0.11620087,95741.0,95739.0,0.052274]
[1735237083339,0.11620087,95741.0,95723.0,0.052283]
[1735237083540,0.11620087,95741.0,95739.0,0.052274]
[1735237084238,0.11620087,95741.0,95740.0,0.052274]
[1735237084536,0.02420087,95741.0,95740.0,0.052274]
[1735237084738,0.00943398,95741.0,95740.0,0.052274]
[1735237085234,0.00943398,95741.0,95721.0,0.052284]
[1735237085235,0.05228,95728.0,95721.0,0.052284]
[1735237085435,0.00243398,95741.0,95720.0,0.052285]
[1735237085436,0.07639315,95731.0,95720.0,0.052285]
[1735237085645,0.07639315,95731.0,95703.0,0.052294]
[1735237085646,0.052282,95725.0,95716.0,0.052287]
[1735237085838,0.052283,95724.0,95716.0,0.052287]
[1735237086032,0.052283,95724.0,95703.0,0.052294]
[1735237086344,0.052284,95722.0,95703.0,0.052294]
[1735237086525,0.052284,95722.0,95715.0,0.052287]
[1735237086725,0.052284,95722.0,95703.0,0.052294]
[1735237086934,0.052284,95722.0,95716.0,0.009]
[1735237087331,0.052284,95722.0,95716.0,0.061287]
[1735237087530,0.052284,95722.0,95703.0,0.052294]
[1735237087738,0.053284,95722.0,95715.0,0.009]
[1735237088336,0.054284,95722.0,95715.0,0.009]
[1735237089038,0.054284,95722.0,95718.0,0.052285]
[1735237089235,0.053284,95722.0,95718.0,0.052285]
[1735237089538,0.054284,95722.0,95718.0,0.052285]
[1735237089734,0.002,95722.0,95716.0,0.009]
[1735237089938,0.002,95722.0,95720.0,0.052285]
[1735237090135,0.01393845,95722.0,95720.0,0.052285]
[1735237090345,0.01493845,95722.0,95720.0,0.052285]
[1735237090640,0.06722245,95722.0,95718.0,0.009]
[1735237090840,0.06522245,95722.0,95718.0,0.052286]
[1735237091045,0.01893845,95722.0,95704.0,0.05]
[1735237091352,0.006,95722.0,95721.0,0.052284]
[1735237092039,0.006,95722.0,95721.0,0.102284]
[1735237092430,0.002,95722.0,95721.0,0.102284]
[1735237092633,0.006,95722.0,95721.0,0.052284]
[1735237093138,0.005,95722.0,95721.0,0.102284]
[1735237093340,0.007,95722.0,95721.0,0.102284]
[1735237094040,0.0131244,95747.0,95724.0,0.052282]
[1735237094243,0.052265,95757.0,95754.0,0.052266]
[1735237094441,0.052265,95757.0,95755.0,0.052265]
[1735237095345,0.053265,95757.0,95755.0,0.052265]
[1735237095547,0.001,95757.0,95738.0,0.05]
[1735237095739,0.001,95757.0,95750.0,0.052268]
[1735237095944,0.052267,95753.0,95744.0,0.052271]
[1735237096136,0.001,95757.0,95739.0,0.35132]
[1735237096334,0.001,95757.0,95755.0,0.009]
[1735237096641,0.01383878,95757.0,95755.0,0.009]
[1735237096840,0.001,95757.0,95755.0,0.009]
[1735237097034,0.052266,95755.0,95747.0,0.05227]
[1735237097338,0.052266,95755.0,95750.0,0.004]
[1735237098046,0.052266,95755.0,95750.0,0.052268]
[1735237098644,0.053266,95755.0,95750.0,0.061268]
[1735237099245,0.001,95755.0,95750.0,0.009]
[1735237099545,0.001,95755.0,95734.0,0.052277]
[1735237099546,0.052273,95742.0,95734.0,0.052277]
[1735237099747,0.12866515,95744.0,95734.0,0.052277]
[1735237099944,0.07639315,95744.0,95734.0,0.052277]
[1735237100138,0.052273,95741.0,95734.0,0.052277]
[1735237100443,0.052273,95741.0,95735.0,0.052276]
[1735237100943,0.07639315,95744.0,95736.0,0.052276]
[1735237101741,0.005,95741.0,95736.0,0.052276]
[1735237102642,0.005,95741.0,95740.0,0.052274]
[1735237103048,0.006,95741.0,95740.0,0.052274]
[1735237103347,0.001,95741.0,95740.0,0.052274]
[1735237104037,0.01,95741.0,95740.0,0.052274]
[1735237104950,0.001,95741.0,95740.0,0.052274]
[1735237105249,0.014,95741.0,95740.0,0.052274]
[1735237105949,0.009,95741.0,95740.0,0.052274]
[1735237106152,0.014,95741.0,95740.0,0.052274]
[1735237108949,0.014,95741.0,95740.0,0.122274]
[1735237109942,0.005,95741.0,95740.0,0.122274]
[1735237110249,0.013,95741.0,95740.0,0.122274]
[1735237111857,0.008,95741.0,95740.0,0.122274]
[1735237113656,0.0853,95770.0,95762.0,0.052262]
[1735237113845,0.0853,95770.0,95748.0,0.052269]
[1735237113846,0.05226,95766.0,95765.0,0.05226]
[1735237115453,0.009,95766.0,95765.0,0.05226]
[1735237115655,0.014,95766.0,95765.0,0.05226]
[1735237116957,0.013,95766.0,95765.0,0.05226]
[1735237117347,0.2638,95787.0,95765.0,0.05226]
[1735237117348,0.2638,95787.0,95786.0,0.052249]
[1735237117858,0.1724,95787.0,95786.0,0.052249]
[1735237118344,0.0861,95787.0,95786.0,0.052249]
[1735237118548,0.0914,95795.0,95786.0,0.052249]
[1735237118549,0.10396973,95795.0,95794.0,0.052244]
[1735237120149,0.21846607,95802.0,95794.0,0.052244]
[1735237120355,0.001,95795.0,95794.0,0.056244]
[1735237121250,0.001,95795.0,95794.0,0.069244]
[1735237121654,0.18809915,95795.0,95794.0,0.069244]
[1735237121856,0.19409915,95795.0,95794.0,0.062244]
[1735237123458,0.20309915,95795.0,95794.0,0.053244]
[1735237125360,0.20309915,95795.0,95794.0,0.001]
[1735237125361,0.016,95795.0,95794.0,0.001]
[1735237125561,0.016,95795.0,95761.0,0.1829]
[1735237125766,0.07639315,95790.0,95786.0,0.052248]
[1735237126067,0.052246,95792.0,95786.0,0.052248]
[1735237126261,0.016,95795.0,95786.0,0.052248]
[1735237126462,0.052248,95788.0,95783.0,0.05225]
[1735237126662,0.0885,95787.0,95783.0,0.05225]
[1735237127062,0.0885,95787.0,95784.0,0.05225]
[1735237127464,0.0885,95787.0,95780.0,0.052252]
[1735237127671,0.052252,95781.0,95750.0,0.07639315]
[1735237127975,0.0873,95780.0,95776.0,0.052254]
[1735237128163,0.0873,95780.0,95759.0,0.07]
[1735237128362,0.0873,95780.0,95739.0,0.0878]
[1735237128363,0.052259,95768.0,95763.0,0.052261]
[1735237128560,0.0885,95767.0,95743.0,0.052272]
[1735237128761,0.0922,95766.0,95749.0,0.07]
[1735237129063,0.0922,95766.0,95765.0,0.05226]
[1735237129267,0.0885,95767.0,95766.0,0.05226]
[1735237129971,0.09524745,95767.0,95766.0,0.05226]
[1735237130376,0.09624745,95767.0,95766.0,0.05226]
[1735237130873,0.10024745,95767.0,95766.0,0.05226]
[1735237131078,0.09924745,95767.0,95766.0,0.05226]
[1735237131369,0.10224745,95767.0,95766.0,0.05226]
[1735237131872,0.10324745,95767.0,95766.0,0.05226]
[1735237132073,0.29514991,95767.0,95766.0,0.05226]
[1735237133271,0.10824745,95767.0,95766.0,0.05226]
[1735237133463,0.1062572,95767.0,95766.0,0.05226]
[1735237133873,0.1012572,95767.0,95766.0,0.05226]
[1735237134071,0.1005,95767.0,95766.0,0.05226]
[1735237134669,0.0935,95767.0,95766.0,0.05226]
[1735237134863,0.0975,95767.0,95766.0,0.05226]
[1735237135072,0.09925871,95767.0,95766.0,0.05226]
[1735237135269,0.10425871,95767.0,95766.0,0.05226]
[1735237135975,0.0975,95767.0,95766.0,0.05226]
[1735237136577,0.0885,95767.0,95766.0,0.05226]
[1735237136777,0.1015,95767.0,95766.0,0.05226]
[1735237136977,0.10826136,95767.0,95766.0,0.05226]
[1735237137178,0.10026136,95767.0,95766.0,0.05226]
[1735237137375,0.10526136,95767.0,95766.0,0.05226]
[1735237137572,0.10426136,95767.0,95766.0,0.05226]
[1735237137872,0.09926136,95767.0,95766.0,0.05226]
[1735237138080,0.1005,95767.0,95766.0,0.05226]
[1735237138276,0.0965,95767.0,95766.0,0.05226]
[1735237138471,0.1015,95767.0,95766.0,0.05226]
[1735237138987,0.10826425,95767.0,95766.0,0.05226]
[1735237139580,0.10826508,95767.0,95766.0,0.05226]
[1735237140280,0.10526508,95767.0,95766.0,0.05226]
[1735237140681,0.10026508,95767.0,95766.0,0.05226]
[1735237140890,0.10826508,95767.0,95766.0,0.05226]
[1735237141182,0.10826508,95767.0,95755.0,0.052266]
[1735237141489,0.052271,95746.0,95738.0,0.052275]
[1735237141693,0.05904172,95746.0,95739.0,0.052274]
[1735237141982,0.052266,95754.0,95734.0,0.052277]
[1735237142187,0.052278,95732.0,95731.0,0.18717001]
[1735237143282,0.05228,95728.0,95727.0,0.24956001]
[1735237146090,0.006,95728.0,95727.0,0.24956001]
[1735237146289,0.0224198,95728.0,95727.0,0.24956001]
[1735237146492,0.06228,95728.0,95727.0,0.24956001]
[1735237146692,0.05628,95728.0,95727.0,0.24956001]
[1735237146886,0.06528,95728.0,95727.0,0.24956001]
[1735237147086,0.06628,95728.0,95727.0,0.24956001]
[1735237147398,0.06428,95728.0,95721.0,0.00144]
[1735237147693,0.06428,95728.0,95721.0,0.052284]
[1735237148394,0.06428,95728.0,95727.0,0.001]
[1735237148596,0.012,95728.0,95727.0,0.001]
[1735237148791,0.012,95728.0,95727.0,0.053281]
[1735237149187,0.014,95728.0,95727.0,0.123281]
[1735237150287,0.005,95728.0,95727.0,0.123281]
[1735237150483,0.009,95728.0,95727.0,0.122281]
[1735237150685,0.013,95728.0,95727.0,0.122281]
[1735237151295,0.009,95728.0,95727.0,0.122281]
[1735237151487,0.013,95728.0,95727.0,0.122281]
[1735237152494,0.01,95728.0,95727.0,0.122281]
[1735237158388,0.01,95728.0,95718.0,0.07639315]
[1735237158389,0.052281,95727.0,95720.0,0.052284]
[1735237158597,0.052284,95722.0,95720.0,0.052284]
[1735237158900,0.052284,95722.0,95721.0,0.052284]
[1735237159890,0.055284,95722.0,95721.0,0.052284]
[1735237160091,0.052284,95722.0,95721.0,0.052284]
[1735237160291,0.055284,95722.0,95721.0,0.052284]
[1735237162001,0.01,95722.0,95721.0,0.052284]
[1735237162486,0.005,95722.0,95721.0,0.052284]
[1735237162691,0.005,95722.0,95721.0,0.122284]
[1735237162994,0.002,95722.0,95721.0,0.131284]
[1735237163495,0.001,95722.0,95721.0,0.131284]
[1735237163803,0.005,95722.0,95721.0,0.122284]
[1735237164792,0.005,95722.0,95721.0,0.052284]
[1735237165599,0.006,95722.0,95721.0,0.052284]
[1735237170800,0.003,95722.0,95721.0,0.052284]
[1735237170999,0.006,95722.0,95721.0,0.052284]
[1735237176009,0.003,95722.0,95721.0,0.052284]
[1735237176209,0.006,95722.0,95721.0,0.052284]
[1735237178806,4.4e-07,95724.0,95723.0,0.052283]
[1735237179008,0.60508469,95752.0,95742.0,0.052273]
[1735237179200,0.59297934,95752.0,95742.0,0.052273]
[1735237179396,0.59297934,95752.0,95733.0,0.07639315]
[1735237179397,0.21846607,95744.0,95743.0,0.052272]
[1735237180615,0.21946607,95744.0,95743.0,0.052272]
[1735237181115,0.001,95744.0,95743.0,0.052272]
[1735237181618,0.002,95744.0,95743.0,0.061272]
[1735237182505,0.002,95744.0,95743.0,0.07302019]
[1735237183408,0.21846607,95763.0,95762.0,0.052262]
[1735237184610,0.21846607,95763.0,95762.0,0.061262]
[1735237184611,0.001,95763.0,95762.0,0.061262]
[1735237185304,0.001,95763.0,95762.0,0.009]
[1735237185515,0.002,95763.0,95762.0,0.070262]
[1735237187319,0.001,95763.0,95762.0,0.067262]
[1735237189016,0.06364262,95766.0,95762.0,0.067262]
[1735237189916,0.05226,95765.0,95762.0,0.067262]
[1735237190116,0.052261,95763.0,95762.0,0.015]
[1735237190620,0.3,95763.0,95745.0,0.052271]
[1735237190917,0.052271,95745.0,95740.0,0.052274]
[1735237191118,0.229772,95744.0,95742.0,0.052273]
[1735237191423,0.052275,95739.0,95723.0,0.07]
[1735237191722,0.052275,95738.0,95723.0,0.07]
[1735237192516,0.052275,95738.0,95735.0,0.052277]
[1735237192717,0.1775,95744.0,95723.0,0.073]
[1735237192916,0.1775,95744.0,95730.0,0.07639315]
[1735237193624,0.18896167,95744.0,95730.0,0.07639315]
[1735237193923,0.005,95738.0,95730.0,0.07639315]
[1735237194223,0.005,95738.0,95737.0,0.052276]
[1735237194622,0.004,95738.0,95737.0,0.052276]
[1735237195426,0.001,95738.0,95737.0,0.052276]
[1735237196120,0.01,95738.0,95737.0,0.053276]
[1735237199721,0.001,95738.0,95737.0,0.052276]
[1735237200025,0.012,95738.0,95737.0,0.053276]
[1735237200811,0.009,95738.0,95737.0,0.053276]
[1735237201016,0.012,95738.0,95737.0,0.053276]
[1735237201927,0.004,95738.0,95737.0,0.059276]
[1735237202536,0.011,95738.0,95737.0,0.053276]
[1735237203026,0.003,95738.0,95737.0,0.052276]
[1735237203226,0.011,95738.0,95737.0,0.053276]
[1735237203628,0.008,95738.0,95737.0,0.053276]
[1735237203925,0.063275,95738.0,95737.0,0.001]
[1735237204225,0.052284,95722.0,95698.0,0.00768083]
[1735237204427,0.052284,95722.0,95720.0,0.052285]
[1735237205518,0.052284,95722.0,95707.0,0.087]
[1735237205725,0.07639315,95730.0,95707.0,0.087]
[1735237206015,0.052282,95726.0,95721.0,0.052284]
[1735237206222,0.008,95722.0,95721.0,0.052284]
[1735237206427,0.011,95722.0,95721.0,0.052284]
[1735237207034,0.008,95722.0,95721.0,0.052284]
[1735237207222,0.006,95726.0,95721.0,0.052284]
[1735237207528,0.002,95722.0,95721.0,0.052284]
[1735237207928,0.007,95722.0,95721.0,0.052284]
[1735237208131,0.059284,95722.0,95719.0,0.052285]
[1735237208331,0.059284,95722.0,95707.0,0.087]
[1735237208627,0.059284,95722.0,95720.0,0.052285]
[1735237209026,0.059284,95722.0,95721.0,0.052284]
[1735237209325,0.15574971,95709.0,95708.0,0.052291]
[1735237209719,0.15574971,95709.0,95708.0,0.122291]
[1735237210318,0.15574971,95709.0,95708.0,0.052291]
[1735237210519,0.01564971,95709.0,95708.0,0.052291]
[1735237210720,0.01564971,95709.0,95708.0,0.214091]
[1735237210917,0.002,95709.0,95708.0,0.214091]
[1735237211121,0.005,95709.0,95708.0,0.214091]
[1735237211517,0.21846607,95723.0,95708.0,0.4618]
[1735237211723,0.24967551,95729.0,95722.0,0.052284]
[1735237211926,0.24967551,95729.0,95728.0,0.05228]
[1735237212135,0.05228,95729.0,95728.0,0.05228]
[1735237212520,0.052275,95739.0,95734.0,0.052277]
[1735237212825,0.24967551,95746.0,95735.0,0.052276]
[1735237213028,0.052272,95743.0,95735.0,0.052276]
[1735237213329,0.24967551,95746.0,95723.0,0.07]
[1735237213330,0.052275,95738.0,95723.0,0.07]
[1735237213522,0.052275,95738.0,95736.0,0.052276]
[1735237213918,0.052272,95743.0,95737.0,0.052276]
[1735237214119,0.053272,95743.0,95737.0,0.052276]
[1735237214325,0.001,95743.0,95735.0,0.01]
[1735237214524,0.053275,95738.0,95735.0,0.008]
[1735237214927,0.053275,95738.0,95735.0,0.060276]
[1735237215329,0.053275,95738.0,95735.0,0.008]
[1735237215536,0.053275,95738.0,95737.0,0.052276]
[1735237215832,0.001,95738.0,95737.0,0.052276]
[1735237216230,0.053272,95743.0,95738.0,0.052275]
[1735237216430,0.053272,95743.0,95739.0,0.052274]
[1735237216624,0.001,95743.0,95742.0,0.052273]
[1735237216830,0.10075593,95744.0,95743.0,0.052272]
[1735237219737,0.0931,95749.0,95738.0,0.008]
[1735237219939,0.24967551,95755.0,95748.0,0.05227]
[1735237220141,0.24967551,95755.0,95754.0,0.052266]
[1735237220329,0.24967551,95762.0,95757.0,0.052265]
[1735237220633,0.24967551,95762.0,95745.0,0.07639315]
[1735237220840,0.24967551,95762.0,95760.0,0.052263]
[1735237221625,0.052262,95763.0,95760.0,0.052263]
[1735237222537,0.001,95762.0,95760.0,0.061263]
[1735237223334,0.001,95762.0,95760.0,0.067263]
[1735237224935,0.001,95762.0,95760.0,0.015]
[1735237225237,0.001,95762.0,95754.0,0.052266]
[1735237225238,0.052269,95749.0,95745.0,0.052271]
[1735237225427,0.052266,95755.0,95749.0,0.052269]
[1735237225934,0.052266,95755.0,95740.0,0.07639315]
[1735237226134,0.052266,95755.0,95741.0,0.052273]
[1735237226330,0.006,95749.0,95748.0,0.052269]
[1735237226640,0.01275383,95749.0,95748.0,0.052269]
[1735237227042,0.00675383,95749.0,95748.0,0.052269]
[1735237227946,0.01475383,95749.0,95748.0,0.053269]
[1735237228242,0.02611074,95749.0,95748.0,0.053269]
[1735237228437,0.02610852,95749.0,95748.0,0.001]
[1735237228743,0.07837752,95749.0,95748.0,0.001]
[1735237228939,0.07837752,95749.0,95748.0,0.00013397]
[1735237229249,0.07962591,95749.0,95748.0,0.00113397]
[1735237230042,0.08062591,95749.0,95748.0,0.00113397]
[1735237230243,0.02035691,95749.0,95733.0,0.052278]
[1735237230442,0.07639315,95743.0,95718.0,0.00156689]
[1735237230647,0.052276,95737.0,95730.0,0.052279]
[1735237230848,0.052276,95737.0,95731.0,0.052279]
[1735237231645,0.052276,95737.0,95733.0,0.052278]
[1735237232349,0.052276,95737.0,95734.0,0.052277]
[1735237233341,0.054276,95737.0,95734.0,0.052277]
[1735237233549,0.054276,95737.0,95736.0,0.052276]
[1735237233550,0.002,95737.0,95736.0,0.052276]
[1735237234545,0.001,95737.0,95736.0,0.052276]
[1735237234749,0.00875165,95737.0,95736.0,0.122276]
[1735237235251,0.01675165,95737.0,95736.0,0.122276]
[1735237235544,0.02075165,95737.0,95736.0,0.122276]
[1735237235745,0.014,95737.0,95736.0,0.122276]
[1735237236838,0.00675704,95737.0,95736.0,0.122276]
[1735237237045,0.014,95737.0,95736.0,0.122276]
[1735237237247,0.02075763,95737.0,95736.0,0.122276]
[1735237237442,0.014,95737.0,95736.0,0.122276]
[1735237237649,0.01975831,95737.0,95736.0,0.122276]
[1735237238747,0.02075831,95737.0,95736.0,0.123276]
[1735237240040,0.0157671,95737.0,95736.0,0.122276]
[1735237240240,0.0217671,95737.0,95736.0,0.123276]
[1735237241638,0.0127671,95737.0,95736.0,0.123276]
[1735237241840,0.0217671,95737.0,95736.0,0.123276]
[1735237242149,0.0740431,95737.0,95736.0,0.001]
[1735237242349,0.052277,95735.0,95730.0,0.052279]
[1735237242644,0.0067671,95734.0,95714.0,0.07]
[1735237242851,0.015,95737.0,95714.0,0.07]
[1735237243150,0.052283,95725.0,95721.0,0.052284]
[1735237243349,0.052283,95725.0,95714.0,0.07]
[1735237243650,0.0859,95724.0,95717.0,0.052286]
[1735237243945,0.052286,95717.0,95706.0,0.0014]
[1735237244248,0.052295,95701.0,95700.0,0.1]
[1735237245538,0.054295,95701.0,95700.0,0.1]
[1735237246147,0.052295,95701.0,95700.0,0.1]
[1735237246448,0.058295,95701.0,95700.0,0.101]
[1735237247039,0.067295,95701.0,95700.0,0.101]
[1735237247240,0.015,95701.0,95688.0,0.052302]
[1735237247443,0.052297,95698.0,95677.0,0.01132145]
[1735237248251,0.18691643,95695.0,95689.0,0.052301]
[1735237248452,0.0893,95694.0,95689.0,0.052301]
[1735237248655,0.0523,95693.0,95689.0,0.052301]
[1735237249651,0.0893,95694.0,95691.0,0.0523]
[1735237249855,0.27621643,95694.0,95691.0,0.0523]
[1735237250747,0.27621643,95694.0,95692.0,0.07]
[1735237250948,0.004,95693.0,95692.0,0.07]
[1735237251156,0.004,95693.0,95691.0,0.0523]
[1735237251542,0.0943,95694.0,95691.0,0.07]
[1735237251745,0.0993,95694.0,95692.0,0.0523]
[1735237251949,0.1023,95694.0,95692.0,0.0523]
[1735237252846,0.1023,95694.0,95693.0,0.07]
[1735237253048,0.013,95694.0,95693.0,0.07]
[1735237253647,0.005,95694.0,95693.0,0.07]
[1735237253958,0.36441643,95700.0,95699.0,0.052296]
[1735237254354,0.1775,95700.0,95699.0,0.052296]
[1735237255553,0.1855,95700.0,95699.0,0.053296]
[1735237256647,0.1945,95700.0,95699.0,0.053296]
[1735237257359,0.1935,95700.0,95699.0,0.053296]
[1735237257958,0.1865,95700.0,95699.0,0.052296]
[1735237258252,0.1945,95700.0,95699.0,0.053296]
[1735237258459,0.017,95700.0,95699.0,0.053296]
[1735237260159,0.009,95700.0,95699.0,0.052296]
[1735237260656,0.017,95700.0,95699.0,0.053296]
[1735237264270,0.011153,95715.0,95699.0,0.001]
[1735237264456,0.27631643,95717.0,95714.0,0.052288]
[1735237264650,0.28764027,95717.0,95714.0,0.052288]
[1735237265156,0.052288,95715.0,95714.0,0.052288]
[1735237265362,0.10034954,95717.0,95716.0,0.052287]
[1735237265563,0.10034954,95722.0,95721.0,0.052284]
[1735237266065,0.052287,95716.0,95714.0,0.052288]
[1735237266261,0.0931,95715.0,95708.0,0.052291]
[1735237266459,0.2754,95715.0,95708.0,0.052291]
[1735237266662,0.052294,95704.0,95703.0,0.052294]
[1735237267759,0.052291,95709.0,95706.0,0.052292]
[1735237267965,0.052289,95713.0,95699.0,0.07639315]
[1735237268160,0.052289,95713.0,95703.0,0.001]
[1735237268464,0.012,95704.0,95703.0,0.053294]
[1735237268764,0.004,95704.0,95703.0,0.052294]
[1735237269855,0.001,95709.0,95703.0,0.052294]
[1735237270161,0.001,95709.0,95708.0,0.052291]
[1735237270555,0.002,95713.0,95712.0,0.052289]
[1735237270761,0.001,95713.0,95712.0,0.052289]
[1735237271154,0.2754,95715.0,95714.0,0.052288]
[1735237271552,0.28631039,95715.0,95714.0,0.052288]
[1735237273272,0.28631039,95715.0,95714.0,0.061288]
[1735237273273,0.2764,95715.0,95714.0,0.061288]
[1735237273657,0.0941,95715.0,95714.0,0.061288]
[1735237273861,0.001,95715.0,95714.0,0.061288]
[1735237274261,0.21860104,95723.0,95722.0,0.052284]
[1735237274565,0.21860104,95731.0,95722.0,0.052284]
[1735237274761,0.21860104,95731.0,95730.0,0.052279]
[1735237275972,0.09837968,95739.0,95735.0,0.052276]
[1735237276465,0.09837968,95739.0,95736.0,0.052276]
[1735237276877,0.09837968,95739.0,95738.0,0.052275]
[1735237277367,0.0874,95739.0,95738.0,0.052275]
[1735237277579,0.21860104,95744.0,95743.0,0.052272]
[1735237278567,0.10326426,95753.0,95752.0,0.052267]
[1735237278765,0.0919,95753.0,95752.0,0.052267]
[1735237280674,0.0919,95753.0,95752.0,0.061267]
[1735237281073,0.0919,95753.0,95752.0,0.070267]
[1735237281283,0.0929,95753.0,95752.0,0.070267]
[1735237284281,0.052267,95752.0,95733.0,0.052277]
[1735237284584,0.052272,95745.0,95720.0,0.2234]
[1735237284778,0.052272,95745.0,95720.0,0.35067815]
[1735237285090,0.07639315,95750.0,95720.0,0.35207815]
[1735237285391,0.052268,95750.0,95745.0,0.052271]
[1735237285982,0.052268,95750.0,95746.0,0.05227]
[1735237286583,0.052268,95750.0,95745.0,0.004]
[1735237286782,0.052268,95750.0,95749.0,0.052269]
[1735237287175,0.052268,95750.0,95746.0,0.004]
[1735237287486,0.052268,95750.0,95746.0,0.056271]
[1735237287781,0.053268,95750.0,95746.0,0.056271]
[1735237288183,0.0919,95753.0,95746.0,0.004]
[1735237288378,0.001,95750.0,95749.0,0.052269]
[1735237289779,0.001,95750.0,95749.0,0.055269]
[1735237290177,0.053268,95750.0,95749.0,0.003]
[1735237290887,0.001,95750.0,95749.0,0.003]
[1735237291483,0.001,95750.0,95749.0,0.055269]
[1735237291674,0.053268,95750.0,95749.0,0.003]
[1735237292075,0.052268,95750.0,95749.0,0.003]
[1735237292276,0.053268,95750.0,95749.0,0.012]
[1735237292877,0.001,95750.0,95749.0,0.012]
[1735237293375,0.053268,95750.0,95749.0,0.012]
[1735237293985,0.053268,95750.0,95749.0,0.018]
[1735237294382,0.052268,95750.0,95749.0,0.009]
[1735237294572,0.052268,95750.0,95749.0,0.018]
[1735237294573,0.053268,95750.0,95749.0,0.018]
[1735237294776,0.053268,95750.0,95749.0,0.012]
[1735237296187,0.053268,95750.0,95749.0,0.009]
[1735237296479,0.001,95750.0,95749.0,0.070269]
[1735237298978,0.001,95750.0,95749.0,0.140269]
[1735237299487,0.001,95750.0,95749.0,0.15150788]
[1735237300575,0.001,95750.0,95749.0,0.14850788]
[1735237301374,0.21860104,95773.0,95772.0,0.052256]
[1735237302286,0.21860104,95785.0,95772.0,0.052256]
[1735237302587,0.21860104,95785.0,95783.0,0.05225]
[1735237302782,0.21860104,95785.0,95784.0,0.05225]
[1735237303580,0.052249,95786.0,95784.0,0.05225]
[1735237303973,0.01084978,95787.0,95784.0,0.05225]
[1735237304179,0.052246,95791.0,95784.0,0.05225]
[1735237304688,0.27084504,95795.0,95789.0,0.052247]
[1735237305383,0.001,95791.0,95790.0,0.052247]
[1735237306490,0.01202917,95795.0,95793.0,0.052245]
[1735237306689,0.001,95795.0,95793.0,0.052245]
[1735237307079,0.052246,95791.0,95790.0,0.001]
[1735237307383,0.001,95795.0,95790.0,0.001]
[1735237307783,0.001,95795.0,95794.0,0.052244]
[1735237308096,0.28406693,95796.0,95794.0,0.052244]
[1735237308684,0.001,95795.0,95794.0,0.052244]
[1735237309391,0.28406693,95796.0,95794.0,0.052244]
[1735237309392,0.28506693,95796.0,95794.0,0.061244]
[1735237309986,0.28506693,95796.0,95794.0,0.070244]
[1735237310785,0.28506693,95796.0,95794.0,0.064244]
[1735237310994,0.28406693,95796.0,95794.0,0.003]
[1735237311189,0.28406693,95796.0,95794.0,0.064244]
[1735237311190,0.001,95795.0,95794.0,0.064244]
[1735237311587,0.1,95800.0,95794.0,0.055244]
[1735237311787,0.1,95800.0,95799.0,0.052242]
[1735237312798,0.21860104,95822.0,95799.0,0.052242]
[1735237313003,0.19377111,95925.0,95828.0,0.052226]
[1735237313004,0.21751897,95832.0,95828.0,0.052226]
[1735237313292,0.15731685,95849.0,95848.0,0.052215]
[1735237313493,0.0861,95870.0,95869.0,0.052204]
[1735237313795,0.01112241,95886.0,95869.0,0.052204]
[1735237314497,0.052195,95885.0,95877.0,0.052199]
[1735237315101,0.2636,95888.0,95878.0,0.052198]
[1735237315102,0.052196,95884.0,95878.0,0.052198]
[1735237315294,0.052196,95884.0,95876.0,0.07639315]
[1735237315494,0.052196,95884.0,95881.0,0.052197]
[1735237316686,0.16013716,95888.0,95881.0,0.001]